bitfinex/quotes_SOLUSD_20251128
["timestamp","ask_amount","ask_price","bid_price","bid_amount"]
[1764344557448,31.42581416,142.29,142.23,16.88]
[1764344557648,6.1679682,142.26,142.23,9.51994492]
[1764344557859,6.1679682,142.26,142.24,16.88]
[1764344558076,6.1679682,142.26,142.25,3.16]
[1764344558276,24.59784596,142.29,142.25,10.0379682]
[1764344558480,24.59784596,142.29,142.26,6.8779682]
[1764344558673,24.59784596,142.29,142.26,10.26005968]
[1764344559066,9.55005968,142.27,142.16,7.03432751]
[1764344559262,1.18024584,142.28,142.2,0.71]
[1764344559263,9.55005968,142.23,142.2,0.71]
[1764344559466,16.58141954,142.22,142.21,20.04]
[1764344560262,34.1598192,142.22,142.21,20.04]
[1764344560587,28.2139766,142.22,142.18,0.71]
[1764344561109,24.60975952,142.22,142.19,23.64421708]
[1764344561268,24.60975952,142.22,142.2,3.60421708]
[1764344561567,7.03086549,142.23,142.21,12.414162]
[1764344561779,7.03086549,142.23,142.22,7.42421708]
[1764344562559,7.03044447,142.24,142.22,13.37478262]
[1764344562795,7.03044447,142.24,142.22,0.66]
[1764344562992,7.03044447,142.24,142.23,3.82]
[1764344563172,7.03044447,142.24,142.23,3.16]
[1764344563376,10.07502846,142.24,142.19,0.66]
[1764344563582,10.07502846,142.24,142.2,20.7]
[1764344563890,10.07502846,142.24,142.2,30.25478262]
[1764344564060,10.07502846,142.24,142.21,0.66]
[1764344564671,7.03086549,142.23,142.21,0.66]
[1764344565166,7.03086549,142.23,142.22,3.16]
[1764344565790,7.03086549,142.23,142.21,0.66]
[1764344565970,7.03086549,142.23,142.22,3.16]
[1764344567367,7.03086549,142.23,142.21,0.66]
[1764344567573,7.03086549,142.23,142.22,20.04]
[1764344567887,7.03086549,142.23,142.21,0.66]
[1764344568062,16.58564811,142.23,142.22,20.04]
[1764344568260,25.30802923,142.23,142.18,0.66]
[1764344568463,9.55478262,142.21,142.19,16.88]
[1764344568687,9.55478262,142.21,142.2,3.16]
[1764344568862,25.30802923,142.23,142.2,3.16]
[1764344569069,9.55478262,142.21,142.2,3.16]
[1764344569690,9.55478262,142.22,142.2,20.04]
[1764344570191,9.55478262,142.22,142.2,20.7]
[1764344570486,9.55478262,142.22,142.21,3.16]
[1764344570685,16.58614248,142.22,142.21,3.16]
[1764344571884,7.03135986,142.22,142.21,3.16]
[1764344572083,16.58614248,142.22,142.21,3.16]
[1764344572675,34.68478798,142.22,142.17,9.09426806]
[1764344572897,34.68478798,142.22,142.18,20.7]
[1764344572898,25.13000536,142.22,142.18,20.7]
[1764344573195,25.13000536,142.22,142.15,0.66]
[1764344573196,9.55478262,142.19,142.15,0.66]
[1764344573379,9.55478262,142.16,142.12,0.66]
[1764344573573,9.55478262,142.15,142.13,20.04]
[1764344573772,0.7,142.19,142.13,20.04]
[1764344574087,9.55478262,142.16,142.13,20.7]
[1764344574395,9.55478262,142.16,142.14,3.82]
[1764344574574,17.58474846,142.17,142.14,12.62994492]
[1764344574889,7.03452149,142.16,142.15,0.66]
[1764344575684,16.58930411,142.16,142.15,3.16]
[1764344575883,7.03452149,142.16,142.15,3.16]
[1764344576772,7.03452149,142.16,142.15,3.82]
[1764344577091,34.17032839,142.19,142.15,12.62994492]
[1764344577287,7.03284337,142.19,142.16,9.46994492]
[1764344577482,16.58762599,142.19,142.16,9.46994492]
[1764344578303,34.16973443,142.19,142.16,9.46994492]
[1764344578601,24.61495181,142.19,142.16,9.46994492]
[1764344578770,34.16973443,142.19,142.16,9.46994492]
[1764344579400,34.16973443,142.19,142.16,8.80994492]
[1764344579706,34.16973443,142.19,142.17,0.66]
[1764344579994,34.16973443,142.19,142.18,3.16]
[1764344580194,24.61495181,142.19,142.18,3.16]
[1764344580402,34.16973443,142.19,142.18,3.16]
[1764344581183,27.13689106,142.19,142.18,3.16]
[1764344582300,34.16973443,142.19,142.18,3.16]
[1764344583596,34.86973443,142.19,142.18,3.16]
[1764344583893,35.38998027,142.19,142.13,16.88]
[1764344584082,9.55478262,142.15,142.14,3.16]
[1764344584478,9.55478262,142.16,142.14,3.82]
[1764344585379,7.03482237,142.15,142.14,3.82]
[1764344585697,16.58960499,142.15,142.14,20.04]
[1764344586188,25.32187829,142.15,142.11,0.1]
[1764344586393,9.55478262,142.13,142.12,16.88]
[1764344586598,9.55478262,142.13,142.12,20.04]
[1764344586899,24.62187829,142.15,142.12,20.04]
[1764344587197,24.62187829,142.15,142.12,20.7]
[1764344587408,27.14183854,142.15,142.12,20.7]
[1764344587572,17.58705592,142.15,142.13,3.16]
[1764344587776,7.03432751,142.16,142.13,3.16]
[1764344587777,7.03432751,142.16,142.14,8.80994492]
[1764344587994,7.03432751,142.16,142.14,9.46994492]
[1764344588198,7.03432751,142.16,142.15,0.66]
[1764344588382,24.6201463,142.16,142.12,17.54]
[1764344588582,24.6201463,142.16,142.13,3.16]
[1764344588583,9.55478262,142.14,142.13,3.16]
[1764344588901,10.25478262,142.14,142.12,16.88]
[1764344589089,0.7,142.14,142.11,0.1]
[1764344589488,7.03581228,142.13,142.12,20.04]
[1764344589688,7.03581228,142.13,142.12,20.7]
[1764344590774,24.62473777,142.14,142.12,20.7]
[1764344591805,34.17492892,142.16,142.12,20.7]
[1764344592291,34.17492892,142.16,142.13,0.7]
[1764344593207,10.07502846,142.15,142.13,0.7]
[1764344593903,7.03531729,142.14,142.13,0.7]
[1764344595598,7.03531729,142.14,142.13,3.86]
[1764344595778,17.10994416,142.15,142.13,3.86]
[1764344595978,17.10994416,142.15,142.14,0.71]
[1764344596178,7.03447614,142.16,142.14,9.51994492]
[1764344596411,9.55478262,142.16,142.15,3.16]
[1764344596990,16.58911013,142.16,142.15,3.16]
[1764344598092,7.03432751,142.16,142.15,3.16]
[1764344598289,16.58911013,142.16,142.15,3.16]
[1764344599209,16.58911013,142.16,142.13,8.80994492]
[1764344599413,25.3401463,142.16,142.15,3.16]
[1764344599712,24.6201463,142.16,142.15,3.16]
[1764344600599,34.17492892,142.16,142.15,3.16]
[1764344601310,34.17492892,142.16,142.13,0.71]
[1764344601610,9.55478262,142.14,142.12,16.88]
[1764344601792,1.24024584,142.15,142.13,3.16]
[1764344602390,0.52024584,142.15,142.13,3.16]
[1764344602603,0.52024584,142.15,142.13,3.87]
[1764344602918,7.03531729,142.14,142.13,3.87]
[1764344603783,7.03531729,142.14,142.13,0.71]
[1764344603987,7.03531729,142.14,142.13,3.16]
[1764344606603,7.03531729,142.14,142.13,3.87]
[1764344607109,21.71520444,142.15,142.13,12.67994492]
[1764344607110,7.0350059,142.15,142.13,12.67994492]
[1764344607315,7.0350059,142.15,142.14,0.71]
[1764344608106,7.03432751,142.16,142.14,0.71]
[1764344609586,10.64158198,142.16,142.14,0.71]
[1764344610616,7.03432751,142.16,142.15,3.16]
[1764344610826,10.64158198,142.16,142.15,3.16]
[1764344612608,10.64158198,142.16,142.14,0.71]
[1764344612811,10.64158198,142.16,142.15,3.16]
[1764344613618,28.94740077,142.16,142.15,16.88]
[1764344613918,28.94740077,142.16,142.15,20.04]
[1764344616116,28.22740077,142.16,142.15,20.04]
[1764344616321,28.94740077,142.16,142.15,20.04]
[1764344617197,28.22740077,142.16,142.15,20.04]
[1764344617818,28.94740077,142.16,142.15,20.04]
[1764344618431,28.94740077,142.16,142.15,16.88]
[1764344618633,27.64899023,142.16,142.15,20.04]
[1764344619514,26.92899023,142.16,142.15,20.04]
[1764344619912,7.03432751,142.16,142.15,20.75]
[1764344621337,7.03432751,142.16,142.15,29.55994492]
[1764344621563,7.03432751,142.16,142.15,31.86878885]
[1764344621846,7.03432751,142.16,142.15,29.55994492]
[1764344622510,24.61723187,142.18,142.15,29.55994492]
[1764344622836,26.9260758,142.18,142.16,0.72]
[1764344624648,9.34267666,142.17,142.16,0.72]
[1764344625517,7.03383273,142.17,142.15,16.88]
[1764344625836,7.03383273,142.17,142.16,3.16]
[1764344626623,24.61723187,142.18,142.16,3.16]
[1764344626824,2.30884393,142.17,142.16,3.16]
[1764344627731,7.03383273,142.17,142.16,3.88]
[1764344628121,9.34267666,142.17,142.16,3.88]
[1764344628639,7.03383273,142.17,142.16,3.88]
[1764344630149,7.03321818,142.19,142.16,14.99878885]
[1764344630441,7.03321818,142.19,142.17,0.72]
[1764344630735,7.03321818,142.19,142.18,3.16]
[1764344631250,7.03321818,142.19,142.18,3.88]
[1764344631842,17.58148908,142.2,142.18,3.88]
[1764344632041,17.58148908,142.2,142.19,0.72]
[1764344632845,0.52024584,142.23,142.2,8.80994492]
[1764344633039,2.30884393,142.25,142.21,3.88]
[1764344633240,2.82908977,142.24,142.22,3.16]
[1764344633743,2.30884393,142.23,142.22,3.16]
[1764344633929,2.82908977,142.24,142.22,3.16]
[1764344634940,7.03086549,142.23,142.22,3.16]
[1764344636853,9.99970942,142.23,142.19,8.80994492]
[1764344637035,7.03086549,142.23,142.2,20.76]
[1764344637236,2.82908977,142.27,142.22,2.30884393]
[1764344637547,9.85699053,142.29,142.24,11.11878885]
[1764344637754,7.02790076,142.29,142.25,2.30884393]
[1764344638054,7.02790076,142.29,142.26,3.16]
[1764344638227,7.02790076,142.29,142.26,3.88]
[1764344638429,24.59765267,142.29,142.27,0.72]
[1764344638826,3.48908977,142.28,142.21,0.28432314]
[1764344639030,2.30884393,142.25,142.22,12.68994492]
[1764344639257,2.30884393,142.25,142.23,3.16]
[1764344639555,2.30884393,142.27,142.24,8.80994492]
[1764344639757,2.30884393,142.25,142.23,0.72]
[1764344640050,2.82908977,142.26,142.24,3.16]
[1764344640240,2.30884393,142.26,142.24,3.16]
[1764344640450,2.30884393,142.26,142.24,3.88]
[1764344640665,7.02987697,142.25,142.24,3.88]
[1764344640868,7.02987697,142.25,142.24,3.16]
[1764344641062,7.02987697,142.25,142.24,3.88]
[1764344641462,7.02987697,142.25,142.24,3.16]
[1764344642285,9.9987209,142.25,142.2,16.88]
[1764344642452,7.02987697,142.25,142.24,16.88]
[1764344642976,7.02987697,142.25,142.24,20.04]
[1764344642977,7.68987697,142.25,142.24,20.04]
[1764344643178,7.02987697,142.25,142.24,20.04]
[1764344643383,24.60456941,142.25,142.24,20.04]
[1764344643554,20.54353637,142.25,142.24,20.04]
[1764344643959,20.54353637,142.25,142.24,16.88]
[1764344644167,20.54353637,142.25,142.24,20.04]
[1764344644354,101.9,142.24,142.17,8.80994492]
[1764344644553,2.30884393,142.19,142.18,3.16]
[1764344645074,2.30884393,142.2,142.18,3.88]
[1764344645446,7.03284337,142.19,142.17,16.88]
[1764344645647,2.30884393,142.18,142.14,0.72]
[1764344645875,2.30884393,142.15,142.13,16.88]
[1764344646057,2.30884393,142.14,142.13,16.88]
[1764344646259,2.30884393,142.14,142.13,20.04]
[1764344647472,9.34416122,142.14,142.13,20.04]
[1764344648555,9.34416122,142.14,142.13,16.88]
[1764344648750,9.34416122,142.14,142.13,20.76]
[1764344648950,9.34416122,142.14,142.13,20.04]
[1764344650578,9.34416122,142.14,142.11,0.1]
[1764344650579,27.64245445,142.14,142.11,0.1]
[1764344650763,2.30884393,142.13,142.12,3.16]
[1764344651158,2.30884393,142.13,142.11,0.75]
[1764344651454,2.30884393,142.13,142.12,3.16]
[1764344651656,2.30884393,142.13,142.11,0.75]
[1764344651884,2.30884393,142.13,142.12,3.16]
[1764344653169,9.34465621,142.13,142.12,3.81]
[1764344653678,9.34465621,142.13,142.12,3.16]
[1764344654256,7.03581228,142.13,142.12,3.16]
[1764344655178,17.58829323,142.14,142.11,0.75]
[1764344655390,17.58829323,142.14,142.12,3.16]
[1764344655593,7.03482237,142.15,142.13,8.80994492]
[1764344655764,24.61668307,142.18,142.14,2.30884393]
[1764344655962,24.61668307,142.18,142.15,3.16]
[1764344656185,26.925527,142.18,142.15,3.83]
[1764344656580,24.61668307,142.18,142.12,0.28432314]
[1764344656788,2.30884393,142.16,142.13,3.83]
[1764344657170,7.03482237,142.15,142.14,0.67]
[1764344657376,7.0344924,142.16,142.14,0.67]
[1764344657700,9.342387,142.18,142.14,0.67]
[1764344657885,26.92573205,142.18,142.14,0.67]
[1764344658396,26.92573205,142.18,142.14,2.97884393]
[1764344658697,9.342387,142.18,142.15,0.67]
[1764344658869,9.342387,142.18,142.16,3.16]
[1764344659209,7.03432751,142.16,142.15,0.67]
[1764344659366,7.03432751,142.16,142.15,3.83]
[1764344660070,7.03404948,142.17,142.15,3.83]
[1764344660272,7.03404948,142.17,142.16,0.67]
[1764344661172,7.03350196,142.18,142.17,9.09426806]
[1764344661374,24.61343731,142.2,142.17,8.80994492]
[1764344661600,24.61343731,142.2,142.18,3.83]
[1764344661788,24.61343731,142.2,142.18,0.67]
[1764344661975,24.61343731,142.2,142.19,3.16]
[1764344661976,26.92228124,142.2,142.19,3.16]
[1764344662588,24.61343731,142.2,142.19,3.16]
[1764344663586,26.92228124,142.2,142.19,3.16]
[1764344664393,24.61343731,142.2,142.19,3.16]
[1764344666074,7.0323488,142.2,142.19,3.83]
[1764344667005,7.03193434,142.21,142.19,12.63994492]
[1764344667206,7.03150315,142.22,142.2,0.67]
[1764344667504,7.03150315,142.22,142.2,0.95432314]
[1764344667878,7.03150315,142.22,142.21,0.67]
[1764344668294,9.33970942,142.23,142.21,0.67]
[1764344668499,9.33970942,142.23,142.22,3.16]
[1764344669280,28.147119,142.23,142.22,3.16]
[1764344671198,25.83827507,142.23,142.22,3.16]
[1764344671719,27.437119,142.23,142.22,3.16]
[1764344671916,27.437119,142.23,142.2,0.67]
[1764344672083,25.12827507,142.23,142.22,3.16]
[1764344672789,101.9,142.22,142.18,16.88]
[1764344672982,0.52024584,142.21,142.19,3.16]
[1764344673302,2.30884393,142.2,142.19,3.16]
[1764344674779,9.34119273,142.2,142.18,16.88]
[1764344674978,2.30884393,142.19,142.18,16.88]
[1764344675205,2.30884393,142.19,142.18,20.04]
[1764344676498,2.30884393,142.19,142.18,16.88]
[1764344676783,24.61668307,142.18,142.14,17.55]
[1764344677007,2.30884393,142.16,142.15,3.16]
[1764344677311,2.30884393,142.17,142.15,3.83]
[1764344678337,7.03432751,142.16,142.15,3.83]
[1764344678829,7.03432751,142.16,142.14,16.88]
[1764344679140,7.03432751,142.16,142.15,3.16]
[1764344680105,9.34317144,142.16,142.15,3.16]
[1764344680704,10.6413638,142.16,142.15,3.16]
[1764344681825,3.60703629,142.16,142.15,3.16]
[1764344684018,10.6413638,142.16,142.15,3.16]
[1764344684831,11.3113638,142.16,142.15,3.16]
[1764344685133,7.70432751,142.16,142.15,3.16]
[1764344685337,10.6413638,142.16,142.15,3.16]
[1764344690838,10.64087343,142.17,142.15,0.67]
[1764344691141,3.60703629,142.16,142.15,0.67]
[1764344691439,3.60703629,142.16,142.15,3.83]
[1764344691624,10.64087343,142.17,142.15,3.83]
[1764344691824,10.64087343,142.17,142.16,0.67]
[1764344693040,25.80866481,142.17,142.14,16.88]
[1764344693248,3.60703629,142.15,142.14,17.55]
[1764344693455,3.60703629,142.15,142.14,20.71]
[1764344693659,3.60703629,142.16,142.14,20.71]
[1764344694319,3.60703629,142.16,142.15,3.16]
[1764344694655,3.60703629,142.16,142.15,3.83]
[1764344694950,0.52024584,142.2,142.15,3.83]
[1764344695119,0.52024584,142.2,142.16,0.67]
[1764344695120,3.60703629,142.18,142.16,0.67]
[1764344695737,25.1344065,142.2,142.16,0.67]
[1764344695943,28.74144279,142.2,142.16,0.67]
[1764344696558,25.1344065,142.2,142.16,0.67]
[1764344696843,24.61416066,142.2,142.16,4.27703629]
[1764344697067,28.22119695,142.2,142.16,0.67]
[1764344697351,28.22119695,142.2,142.17,0.67]
[1764344697514,28.22119695,142.2,142.18,3.16]
[1764344697714,3.60703629,142.19,142.18,3.16]
[1764344698536,3.60703629,142.19,142.15,9.09426806]
[1764344698719,3.60703629,142.18,142.16,3.16]
[1764344698916,3.60703629,142.18,142.17,0.67]
[1764344699246,28.22371936,142.18,142.14,17.55]
[1764344699430,3.60703629,142.16,142.15,3.83]
[1764344700045,24.61668307,142.18,142.16,8.80994492]
[1764344700254,28.22371936,142.18,142.17,0.67]
[1764344700457,28.22371936,142.18,142.17,3.83]
[1764344700662,28.22371936,142.18,142.14,17.02216157]
[1764344700964,3.60703629,142.17,142.15,3.83]
[1764344701342,7.03432751,142.16,142.14,16.88]
[1764344701658,7.03284337,142.19,142.16,8.80994492]
[1764344702057,7.03284337,142.19,142.17,0.67]
[1764344702362,7.03284337,142.19,142.18,3.16]
[1764344702750,7.03284337,142.19,142.18,3.83]
[1764344703060,10.63987966,142.19,142.18,3.83]
[1764344704068,28.8919881,142.19,142.15,8.80994492]
[1764344704236,3.60703629,142.16,142.14,16.88]
[1764344704442,18.07024584,142.18,142.15,3.16]
[1764344704644,3.60703629,142.16,142.15,3.16]
[1764344705250,10.6413638,142.16,142.15,3.16]
[1764344707348,10.6413638,142.16,142.14,16.88]
[1764344707662,0.67,142.15,142.14,16.88]
[1764344708173,0.67,142.15,142.11,0.77]
[1764344708479,25.2901463,142.16,142.11,0.77]
[1764344708650,3.60703629,142.13,142.11,0.77]
[1764344708844,3.60703629,142.13,142.12,3.16]
[1764344709065,7.03630734,142.12,142.11,0.1]
[1764344709278,10.64334363,142.12,142.11,3.26]
[1764344709647,10.64334363,142.12,142.11,0.1]
[1764344709975,10.64334363,142.12,142.11,3.26]
[1764344711079,7.03630734,142.12,142.11,3.26]
[1764344711254,7.03630734,142.12,142.11,0.1]
[1764344711451,10.64334363,142.12,142.11,0.1]
[1764344711654,11.31334363,142.12,142.11,1e-08]
[1764344712067,24.58630734,142.12,142.11,1e-08]
[1764344712954,42.1770757,142.12,142.06,0.68]
[1764344713153,42.1770757,142.12,142.07,3.16]
[1764344713350,3.60703629,142.09,142.07,3.16]
[1764344713574,42.1770757,142.12,142.08,0.68]
[1764344713575,3.60703629,142.11,142.08,0.68]
[1764344713777,3.60703629,142.1,142.08,0.68]
[1764344713955,3.60703629,142.1,142.09,3.16]
[1764344714476,7.88407258,142.1,142.05,16.98]
[1764344714653,3.60703629,142.06,142.05,16.98]
[1764344714854,3.60703629,142.06,142.05,20.14]
[1764344715150,10.64631546,142.06,142.05,20.14]
[1764344715350,7.03927917,142.06,142.05,20.82]
[1764344715565,7.03888207,142.07,142.05,20.82]
[1764344715768,7.03888207,142.07,142.06,0.68]
[1764344717154,7.03794338,142.09,142.06,0.68]
[1764344717354,3.60703629,142.09,142.07,0.72]
[1764344717554,20.14,142.12,142.08,12.41698121]
[1764344717783,7.03587211,142.13,142.09,4.32703629]
[1764344718081,11.16315424,142.13,142.1,3.88]
[1764344718879,7.55611795,142.13,142.1,3.16]
[1764344719058,7.55611795,142.13,142.11,0.72]
[1764344719378,7.03551939,142.14,142.11,4.32703629]
[1764344719576,7.03383273,142.17,142.13,3.60703629]
[1764344719784,7.03383273,142.17,142.14,3.16]
[1764344719967,10.64086902,142.17,142.14,3.88]
[1764344720280,10.64086902,142.17,142.14,3.16]
[1764344720485,10.64086902,142.17,142.14,3.88]
[1764344721185,3.60703629,142.17,142.14,3.88]
[1764344722154,3.60703629,142.17,142.14,3.16]
[1764344722363,3.60703629,142.15,142.13,16.9]
[1764344722885,3.60703629,142.15,142.14,3.16]
[1764344723057,10.64185866,142.15,142.14,3.16]
[1764344723458,7.03482237,142.15,142.14,3.16]
[1764344723672,7.03482237,142.15,142.13,16.9]
[1764344723881,1.23024584,142.14,142.13,16.9]
[1764344724061,4.83728213,142.14,142.13,20.06]
[1764344724383,21.73728213,142.14,142.13,20.06]
[1764344724592,123.63728213,142.14,142.13,20.06]
[1764344724963,130.67259942,142.14,142.13,20.06]
[1764344725379,127.06556313,142.14,142.13,20.06]
[1764344725573,126.35556313,142.14,142.13,20.06]
[1764344725759,130.67259942,142.14,142.13,16.9]
[1764344725977,130.67259942,142.14,142.13,20.04]
[1764344726713,130.67259942,142.14,142.13,16.9]
[1764344726903,130.67259942,142.14,142.13,20.06]
[1764344727068,127.06556313,142.14,142.13,20.06]
[1764344727388,130.67259942,142.14,142.13,20.06]
[1764344727881,126.35556313,142.14,142.13,20.06]
[1764344728086,113.06259942,142.14,142.13,20.06]
[1764344729101,7.03531729,142.14,142.13,20.78]
[1764344729486,10.64235358,142.14,142.13,20.06]
[1764344730086,7.03531729,142.14,142.13,20.06]
[1764344730281,7.03531729,142.14,142.13,20.78]
[1764344730497,20.06,142.17,142.13,24.38703629]
[1764344730670,20.06,142.17,142.14,4.32703629]
[1764344730871,7.03383273,142.17,142.14,4.32703629]
[1764344731078,7.03383273,142.17,142.15,0.72]
[1764344731395,7.03383273,142.17,142.16,3.14]
[1764344732170,24.61695941,142.18,142.16,3.86]
[1764344732565,7.03333802,142.18,142.17,0.72]
[1764344732766,7.55330002,142.19,142.17,0.72]
[1764344732962,25.13540846,142.19,142.13,16.9]
[1764344733163,10.08477394,142.18,142.14,12.66994492]
[1764344733362,0.52024584,142.18,142.15,0.28432314]
[1764344733670,7.55259464,142.2,142.16,9.5645281]
[1764344733868,7.55259464,142.2,142.17,3.86]
[1764344734266,34.69799475,142.2,142.17,3.86]
[1764344734494,9.5645281,142.19,142.17,3.86]
[1764344734694,34.69799475,142.2,142.17,3.86]
[1764344735898,9.5645281,142.18,142.16,8.80994492]
[1764344736088,9.5645281,142.18,142.17,3.14]
[1764344736769,112.1745281,142.18,142.17,3.14]
[1764344736969,112.1745281,142.18,142.13,16.9]
[1764344736970,9.5645281,142.14,142.13,16.9]
[1764344737201,9.5645281,142.14,142.13,20.04]
[1764344737576,9.5645281,142.15,142.13,20.76]
[1764344737889,9.5645281,142.16,142.14,0.72]
[1764344738283,102.42024584,142.17,142.14,0.72]
[1764344738484,7.03432751,142.16,142.14,0.72]
[1764344739095,7.03432751,142.16,142.15,3.14]
[1764344739301,16.59885561,142.16,142.14,0.72]
[1764344739472,16.59885561,142.16,142.15,3.14]
[1764344740698,13.21686663,142.16,142.15,3.14]
[1764344742786,7.03432751,142.16,142.15,3.86]
[1764344743276,7.03432751,142.16,142.15,3.14]
[1764344743477,13.21686663,142.16,142.15,3.14]
[1764344745411,7.03432751,142.16,142.15,3.14]
[1764344745894,7.03432751,142.16,142.15,3.86]
[1764344746282,13.21686663,142.16,142.15,3.14]
[1764344746883,24.6201463,142.16,142.13,17.62]
[1764344747086,24.6201463,142.16,142.15,3.14]
[1764344747487,25.3001463,142.16,142.13,16.9]
[1764344747688,0.68,142.15,142.11,0.72]
[1764344747902,24.6201463,142.16,142.12,3.14]
[1764344748202,6.18253912,142.14,142.13,3.14]
[1764344748592,30.80614964,142.14,142.11,0.72]
[1764344748783,30.80614964,142.14,142.13,3.14]
[1764344749381,24.62361052,142.14,142.13,3.86]
[1764344749580,7.03531729,142.14,142.13,3.86]
[1764344750100,101.9,142.17,142.13,18.85248404]
[1764344750280,108.93388965,142.17,142.14,6.90253912]
[1764344750480,108.93388965,142.17,142.14,0.72]
[1764344750695,108.93388965,142.17,142.15,0.72]
[1764344750895,108.93388965,142.17,142.16,3.14]
[1764344751096,132.7010106,142.17,142.16,3.14]
[1764344752206,132.7010106,142.17,142.13,0.72]
[1764344752417,6.18253912,142.14,142.11,0.72]
[1764344752598,13.2183514,142.13,142.11,0.72]
[1764344752936,13.2183514,142.13,142.12,3.14]
[1764344753420,31.48788211,142.13,142.08,16.88]
[1764344753620,0.68,142.12,142.08,16.88]
[1764344753826,6.18253912,142.09,142.05,0.82]
[1764344754114,0.68,142.12,142.05,0.82]
[1764344754332,6.18253912,142.08,142.06,3.14]
[1764344754537,16.88,142.1,142.06,3.14]
[1764344754690,13.22132281,142.07,142.05,0.1]
[1764344755322,6.18253912,142.06,142.05,0.1]
[1764344755524,7.71878369,142.07,142.05,0.1]
[1764344755727,7.03878369,142.07,142.06,3.14]
[1764344755901,13.22132281,142.07,142.06,3.14]
[1764344756100,13.22132281,142.07,142.05,0.1]
[1764344756305,13.22100982,142.08,142.06,3.14]
[1764344756918,13.22100982,142.08,142.06,3.86]
[1764344757118,13.22100982,142.08,142.06,3.14]
[1764344757994,30.81673054,142.08,142.05,0.82]
[1764344758194,30.81673054,142.08,142.06,3.14]
[1764344759620,24.63419142,142.08,142.06,3.14]
[1764344759793,30.81673054,142.08,142.06,3.14]
[1764344760211,6.18253912,142.07,142.06,3.14]
[1764344760412,13.22132281,142.07,142.05,0.82]
[1764344760622,13.22132281,142.07,142.06,3.14]
[1764344760623,7.71878369,142.07,142.06,3.14]
[1764344760919,7.03878369,142.07,142.06,3.14]
[1764344761119,7.03878369,142.07,142.05,0.1]
[1764344761293,7.03878369,142.07,142.06,3.14]
[1764344761906,24.634009,142.08,142.06,3.14]
[1764344762218,6.86253912,142.07,142.05,0.1]
[1764344762418,108.08253912,142.06,142.05,0.1]
[1764344762596,108.76253912,142.06,142.05,3.24]
[1764344763019,6.86253912,142.06,142.05,0.1]
[1764344763208,6.86253912,142.06,142.03,0.1]
[1764344763514,6.18253912,142.04,142.03,1e-08]
[1764344763714,0.68,142.04,142.03,1e-08]
[1764344763936,17.59819794,142.06,142.03,3.86]
[1764344764295,23.78073706,142.06,142.03,3.86]
[1764344764610,17.59819794,142.06,142.04,3.86]
[1764344764915,23.78073706,142.06,142.02,23.06253912]
[1764344765237,17.59819794,142.06,142.03,3.86]
[1764344765395,23.78073706,142.06,142.03,3.86]
[1764344765604,23.78073706,142.06,142.03,0.72]
[1764344765906,30.82001623,142.06,142.04,3.14]
[1764344766325,6.18253912,142.05,142.02,16.88]
[1764344766527,6.18253912,142.03,142.02,16.88]
[1764344766831,6.18253912,142.03,142.02,20.02]
[1764344767027,0.68,142.04,142.02,16.88]
[1764344767227,6.18253912,142.03,142.02,20.02]
[1764344768036,13.22330515,142.03,142.02,20.02]
[1764344769513,13.22330515,142.03,142.02,16.88]
[1764344769716,7.04076603,142.03,142.02,20.74]
[1764344769915,7.04027034,142.04,142.02,20.74]
[1764344770134,13.22280946,142.04,142.02,20.74]
[1764344770640,7.04027034,142.04,142.02,20.02]
[1764344770846,6.18253912,142.03,142.02,20.02]
[1764344771062,6.70278496,142.03,142.02,20.02]
[1764344771262,0.52024584,142.03,142.02,20.7]